[Event "Titled Tuesday Blitz May 16 Late 2023"]
[White "Melikyan, Gnel"]
[Black "Liu, Casper"]
[WhiteFideId "54109990"]
[BlackFideId "1454153"]
[WhiteElo "2138"]
[BlackElo "2221"]
[Result "1-0"]
[Round "05"]
[TimeControl "180+2"]
[Date "2023.05.16"]
[WhiteClock "0:00:19"]
[BlackClock "0:01:00"]

1. e4 {[%clk 0:02:59]}  e5 {[%clk 0:02:56]} 2. Nc3 {[%clk 0:02:56]}  Nf6 {[%clk 0:02:55]} 3. Bc4 {[%clk 0:02:55]}  Bc5 {[%clk 0:02:52]} 4. Nf3 {[%clk 0:02:55]}  d6 {[%clk 0:02:50]} 5. O-O {[%clk 0:02:54]}  Nc6 {[%clk 0:02:50]} 6. h3 {[%clk 0:02:54]}  h6 {[%clk 0:02:48]} 7. d3 {[%clk 0:02:54]}  a6 {[%clk 0:02:46]} 8. Be3 {[%clk 0:02:55]}  g5 {[%clk 0:02:45]} 9. Bxc5 {[%clk 0:02:50]}  dxc5 {[%clk 0:02:45]} 10. Nd5 {[%clk 0:02:48]}  g4 {[%clk 0:02:41]} 11. hxg4 {[%clk 0:02:26]}  Bxg4 {[%clk 0:02:42]} 12. Ne3 {[%clk 0:02:26]}  Bh5 {[%clk 0:02:41]} 13. Nf5 {[%clk 0:02:20]}  Rg8 {[%clk 0:02:27]} 14. c3 {[%clk 0:02:15]}  Qd7 {[%clk 0:02:21]} 15. Kh1 {[%clk 0:02:09]}  O-O-O {[%clk 0:02:18]} 16. Rg1 {[%clk 0:02:02]}  Ng4 {[%clk 0:02:13]} 17. Qe2 {[%clk 0:01:54]}  b5 {[%clk 0:02:06]} 18. Bd5 {[%clk 0:01:53]}  Ne7 {[%clk 0:01:59]} 19. Nxe5 {[%clk 0:01:40]}  Nxe5 {[%clk 0:01:49]} 20. Nxe7+ {[%clk 0:01:25]}  Qxe7 {[%clk 0:01:48]} 21. Qxh5 {[%clk 0:01:26]}  Rg5 {[%clk 0:01:48]} 22. Qh3+ {[%clk 0:01:26]}  Kb8 {[%clk 0:01:47]} 23. f4 {[%clk 0:01:26]}  Ng4 {[%clk 0:01:44]} 24. Rgf1 {[%clk 0:01:15]}  Rgg8 {[%clk 0:01:35]} 25. Rf3 {[%clk 0:01:08]}  h5 {[%clk 0:01:34]} 26. Kg1 {[%clk 0:01:04]}  c4 {[%clk 0:01:33]} 27. Qxh5 {[%clk 0:00:49]}  Nf6 {[%clk 0:01:28]} 28. Qxf7 {[%clk 0:00:48]}  Nxd5 {[%clk 0:01:28]} 29. Qxe7 {[%clk 0:00:46]}  Nxe7 {[%clk 0:01:29]} 30. d4 {[%clk 0:00:46]}  Ng6 {[%clk 0:01:28]} 31. Kf2 {[%clk 0:00:37]}  Rde8 {[%clk 0:01:27]} 32. Re1 {[%clk 0:00:25]}  Nh4 {[%clk 0:01:27]} 33. Rg3 {[%clk 0:00:24]}  Rxg3 {[%clk 0:01:19]} 34. Kxg3 {[%clk 0:00:25]}  Ng6 {[%clk 0:01:20]} 35. f5 {[%clk 0:00:24]}  Ne7 {[%clk 0:01:20]} 36. Kf4 {[%clk 0:00:25]}  Kc8 {[%clk 0:01:19]} 37. g4 {[%clk 0:00:24]}  Kd7 {[%clk 0:01:19]} 38. Rh1 {[%clk 0:00:24]}  c6 {[%clk 0:01:16]} 39. Rh7 {[%clk 0:00:24]}  Kd8 {[%clk 0:01:15]} 40. g5 {[%clk 0:00:24]}  Rf8 {[%clk 0:01:15]} 41. f6 {[%clk 0:00:22]}  Nc8 {[%clk 0:01:14]} 42. e5 {[%clk 0:00:22]}  Ke8 {[%clk 0:01:09]} 43. g6 {[%clk 0:00:21]}  Nb6 {[%clk 0:01:08]} 44. Re7+ {[%clk 0:00:20]}  Kd8 {[%clk 0:01:08]} 45. g7 {[%clk 0:00:20]}  Rg8 {[%clk 0:01:03]} 46. Rb7 {[%clk 0:00:20]}  Nd5+ {[%clk 0:01:03]} 47. Kf5 {[%clk 0:00:21]}  Kc8 {[%clk 0:01:04]} 48. Rf7 {[%clk 0:00:19]}  Kd8 {[%clk 0:01:00]} 49. Rf8+ {[%clk 0:00:19]} 1-0


[Site "https://www.chess.com"]

[Event "Titled Tuesday Blitz May 16 Late 2023"]
[White "Womacka, Mathias"]
[Black "Spata, German"]
[WhiteFideId "4611390"]
[BlackFideId "113026"]
[WhiteElo "2377"]
[BlackElo "2260"]
[Result "0-1"]
[Round "05"]
[TimeControl "180+2"]
[Date "2023.05.16"]
[WhiteClock "0:00:57"]
[BlackClock "0:01:39"]

1. e4 {[%clk 0:03:00]}  e6 {[%clk 0:02:51]} 2. d4 {[%clk 0:02:59]}  d5 {[%clk 0:02:51]} 3. Nd2 {[%clk 0:02:59]}  dxe4 {[%clk 0:02:52]} 4. Nxe4 {[%clk 0:02:59]}  Bd7 {[%clk 0:02:53]} 5. Nf3 {[%clk 0:02:57]}  Bc6 {[%clk 0:02:53]} 6. Bd3 {[%clk 0:02:57]}  Nd7 {[%clk 0:02:53]} 7. O-O {[%clk 0:02:56]}  Ngf6 {[%clk 0:02:53]} 8. Ned2 {[%clk 0:02:55]}  Be7 {[%clk 0:02:53]} 9. Nc4 {[%clk 0:02:49]}  b6 {[%clk 0:02:52]} 10. Nce5 {[%clk 0:02:42]}  Bb7 {[%clk 0:02:52]} 11. Bg5 {[%clk 0:02:30]}  O-O {[%clk 0:02:49]} 12. Qe2 {[%clk 0:02:27]}  c5 {[%clk 0:02:46]} 13. dxc5 {[%clk 0:01:51]}  Nxc5 {[%clk 0:02:46]} 14. Bc4 {[%clk 0:01:46]}  Nd5 {[%clk 0:02:35]} 15. Bd2 {[%clk 0:01:20]}  Nd7 {[%clk 0:02:22]} 16. Rad1 {[%clk 0:01:16]}  Bf6 {[%clk 0:02:07]} 17. Bc1 {[%clk 0:01:13]}  Nxe5 {[%clk 0:02:04]} 18. Nxe5 {[%clk 0:01:14]}  Qc7 {[%clk 0:01:59]} 19. Nf3 {[%clk 0:01:07]}  Nf4 {[%clk 0:01:51]} 20. Bxf4 {[%clk 0:01:06]}  Qxf4 {[%clk 0:01:51]} 21. c3 {[%clk 0:01:06]}  Bxf3 {[%clk 0:01:46]} 22. gxf3 {[%clk 0:00:57]}  Be5 {[%clk 0:01:39]} 0-1


[Site "https://www.chess.com"]

[Event "Titled Tuesday Blitz May 16 Late 2023"]
[White "Boor, Carl"]
[Black "marik_spb"]
[WhiteFideId "2017008"]
[WhiteElo "2330"]
[BlackElo "2446"]
[Result "1-0"]
[Round "05"]
[TimeControl "180+2"]
[Date "2023.05.16"]
[WhiteClock "0:00:16"]
[BlackClock "0:00:00"]

1. d4 {[%clk 0:03:00]}  Nf6 {[%clk 0:02:59]} 2. c4 {[%clk 0:03:00]}  e6 {[%clk 0:02:59]} 3. Nc3 {[%clk 0:03:00]}  Bb4 {[%clk 0:02:59]} 4. Bd2 {[%clk 0:03:00]}  O-O {[%clk 0:02:57]} 5. e3 {[%clk 0:02:59]}  d5 {[%clk 0:02:53]} 6. Nf3 {[%clk 0:02:58]}  Bxc3 {[%clk 0:02:43]} 7. Bxc3 {[%clk 0:02:58]}  Ne4 {[%clk 0:02:43]} 8. Rc1 {[%clk 0:02:56]}  Nxc3 {[%clk 0:02:30]} 9. Rxc3 {[%clk 0:02:54]}  Nd7 {[%clk 0:02:28]} 10. Bd3 {[%clk 0:02:48]}  b6 {[%clk 0:02:11]} 11. cxd5 {[%clk 0:02:47]}  exd5 {[%clk 0:02:08]} 12. Qc2 {[%clk 0:02:41]}  c5 {[%clk 0:02:00]} 13. Bxh7+ {[%clk 0:02:39]}  Kh8 {[%clk 0:02:00]} 14. Bf5 {[%clk 0:02:33]}  cxd4 {[%clk 0:01:55]} 15. exd4 {[%clk 0:02:22]}  Re8+ {[%clk 0:01:55]} 16. Re3 {[%clk 0:02:22]}  Rxe3+ {[%clk 0:01:49]} 17. fxe3 {[%clk 0:02:20]}  Nf6 {[%clk 0:01:50]} 18. O-O {[%clk 0:02:14]}  Bxf5 {[%clk 0:01:39]} 19. Qxf5 {[%clk 0:02:14]}  Qc8 {[%clk 0:01:25]} 20. Qd3 {[%clk 0:01:58]}  Ne4 {[%clk 0:00:57]} 21. Nd2 {[%clk 0:01:56]}  Qe6 {[%clk 0:00:52]} 22. Nxe4 {[%clk 0:01:52]}  dxe4 {[%clk 0:00:53]} 23. Qb3 {[%clk 0:01:52]}  Qxb3 {[%clk 0:00:31]} 24. axb3 {[%clk 0:01:52]}  Kg8 {[%clk 0:00:29]} 25. Rc1 {[%clk 0:01:52]}  g6 {[%clk 0:00:20]} 26. Kf2 {[%clk 0:01:48]}  Kg7 {[%clk 0:00:19]} 27. Rc7 {[%clk 0:01:47]}  Kf6 {[%clk 0:00:19]} 28. h4 {[%clk 0:01:45]}  Ke6 {[%clk 0:00:19]} 29. g4 {[%clk 0:01:43]}  f5 {[%clk 0:00:17]} 30. Kg3 {[%clk 0:01:41]}  fxg4 {[%clk 0:00:12]} 31. Kxg4 {[%clk 0:01:11]}  Rf8 {[%clk 0:00:11]} 32. Rc6+ {[%clk 0:00:44]}  Kd5 {[%clk 0:00:07]} 33. Rc3 {[%clk 0:00:32]}  Rf1 {[%clk 0:00:06]} 34. Kg5 {[%clk 0:00:31]}  Rg1+ {[%clk 0:00:06]} 35. Kf6 {[%clk 0:00:32]}  Rg4 {[%clk 0:00:04]} 36. b4 {[%clk 0:00:30]}  Rxh4 {[%clk 0:00:03]} 37. Kxg6 {[%clk 0:00:29]}  Rh2 {[%clk 0:00:03]} 38. b3 {[%clk 0:00:28]}  Rg2+ {[%clk 0:00:03]} 39. Kf6 {[%clk 0:00:27]}  Rd2 {[%clk 0:00:00]} 40. b5 {[%clk 0:00:16]} 1-0


[Site "https://www.chess.com"]

[Event "Titled Tuesday Blitz May 16 Late 2023"]
[White "Bouget, Alexandre"]
[Black "Domingo Nunez, Alejandro"]
[WhiteFideId "681318"]
[BlackFideId "22245561"]
[WhiteElo "2189"]
[BlackElo "2291"]
[Result "0-1"]
[Round "05"]
[TimeControl "180+2"]
[Date "2023.05.16"]
[WhiteClock "0:00:08"]
[BlackClock "0:00:13"]

1. d4 {[%clk 0:02:55]}  g6 {[%clk 0:03:00]} 2. c4 {[%clk 0:02:54]}  Bg7 {[%clk 0:03:01]} 3. h4 {[%clk 0:02:49]}  d6 {[%clk 0:03:02]} 4. h5 {[%clk 0:02:48]}  Nd7 {[%clk 0:03:00]} 5. h6 {[%clk 0:02:47]}  Bf6 {[%clk 0:02:59]} 6. Nc3 {[%clk 0:02:45]}  e6 {[%clk 0:02:56]} 7. Nf3 {[%clk 0:02:46]}  Ne7 {[%clk 0:02:56]} 8. Bg5 {[%clk 0:02:40]}  Bxg5 {[%clk 0:02:46]} 9. Nxg5 {[%clk 0:02:41]}  O-O {[%clk 0:02:46]} 10. Qd2 {[%clk 0:02:26]}  Nc6 {[%clk 0:02:23]} 11. g3 {[%clk 0:02:14]}  e5 {[%clk 0:02:19]} 12. d5 {[%clk 0:02:06]}  Nd4 {[%clk 0:02:17]} 13. Bg2 {[%clk 0:02:01]}  Nc2+ {[%clk 0:01:34]} 14. Qxc2 {[%clk 0:01:56]}  Qxg5 {[%clk 0:01:30]} 15. Nb5 {[%clk 0:01:53]}  Qd8 {[%clk 0:01:29]} 16. e4 {[%clk 0:01:36]}  a5 {[%clk 0:01:23]} 17. Nc3 {[%clk 0:01:28]}  Nc5 {[%clk 0:01:23]} 18. O-O-O {[%clk 0:01:18]}  f5 {[%clk 0:01:22]} 19. Kb1 {[%clk 0:01:18]}  Qg5 {[%clk 0:01:17]} 20. Ka1 {[%clk 0:01:11]}  a4 {[%clk 0:01:16]} 21. Qd2 {[%clk 0:00:58]}  Qxd2 {[%clk 0:01:00]} 22. Rxd2 {[%clk 0:00:59]}  fxe4 {[%clk 0:00:56]} 23. Nxe4 {[%clk 0:00:59]}  Nxe4 {[%clk 0:00:55]} 24. Bxe4 {[%clk 0:01:00]}  Bf5 {[%clk 0:00:54]} 25. Bxf5 {[%clk 0:00:51]}  Rxf5 {[%clk 0:00:54]} 26. Kb1 {[%clk 0:00:51]}  Raf8 {[%clk 0:00:51]} 27. Rh2 {[%clk 0:00:51]}  Rf3 {[%clk 0:00:48]} 28. Kc2 {[%clk 0:00:52]}  b5 {[%clk 0:00:45]} 29. cxb5 {[%clk 0:00:49]}  Rb8 {[%clk 0:00:46]} 30. Rd3 {[%clk 0:00:48]}  Rxd3 {[%clk 0:00:46]} 31. Kxd3 {[%clk 0:00:49]}  Rxb5 {[%clk 0:00:46]} 32. f4 {[%clk 0:00:45]}  Rxd5+ {[%clk 0:00:46]} 33. Ke3 {[%clk 0:00:42]}  Kf7 {[%clk 0:00:43]} 34. Rc2 {[%clk 0:00:39]}  c5 {[%clk 0:00:41]} 35. Rc4 {[%clk 0:00:40]}  Rd4 {[%clk 0:00:42]} 36. Rc3 {[%clk 0:00:35]}  exf4+ {[%clk 0:00:40]} 37. gxf4 {[%clk 0:00:36]}  Rb4 {[%clk 0:00:38]} 38. Rc2 {[%clk 0:00:34]}  Ke6 {[%clk 0:00:38]} 39. Rd2 {[%clk 0:00:30]}  d5 {[%clk 0:00:35]} 40. Rc2 {[%clk 0:00:29]}  Re4+ {[%clk 0:00:25]} 41. Kf3 {[%clk 0:00:29]}  c4 {[%clk 0:00:26]} 42. Rg2 {[%clk 0:00:24]}  Re1 {[%clk 0:00:21]} 43. Rg5 {[%clk 0:00:22]}  Rb1 {[%clk 0:00:17]} 44. Re5+ {[%clk 0:00:18]}  Kd6 {[%clk 0:00:17]} 45. Rg5 {[%clk 0:00:15]}  Rxb2 {[%clk 0:00:16]} 46. f5 {[%clk 0:00:14]}  gxf5 {[%clk 0:00:16]} 47. Rg7 {[%clk 0:00:15]}  c3 {[%clk 0:00:15]} 48. Rxh7 {[%clk 0:00:14]}  c2 {[%clk 0:00:14]} 49. Rd7+ {[%clk 0:00:09]}  Kxd7 {[%clk 0:00:13]} 50. h7 {[%clk 0:00:10]}  Rb8 {[%clk 0:00:13]} 51. h8=Q {[%clk 0:00:08]}  Rxh8 {[%clk 0:00:13]} 0-1


[Site "https://www.chess.com"]

[Event "Titled Tuesday Blitz May 16 Late 2023"]
[White "Toniutti, Ezio"]
[Black "Omranalhosani21"]
[WhiteFideId "113034"]
[WhiteElo "2215"]
[BlackElo "2568"]
[Result "0-1"]
[Round "05"]
[TimeControl "180+2"]
[Date "2023.05.16"]
[WhiteClock "0:00:00"]
[BlackClock "0:00:05"]

1. d4 {[%clk 0:03:00]}  d5 {[%clk 0:02:59]} 2. c4 {[%clk 0:03:00]}  dxc4 {[%clk 0:02:58]} 3. e3 {[%clk 0:03:00]}  Nf6 {[%clk 0:02:58]} 4. Bxc4 {[%clk 0:03:00]}  e6 {[%clk 0:02:59]} 5. Nf3 {[%clk 0:03:01]}  c5 {[%clk 0:03:00]} 6. O-O {[%clk 0:03:00]}  a6 {[%clk 0:03:00]} 7. a4 {[%clk 0:03:00]}  cxd4 {[%clk 0:02:56]} 8. exd4 {[%clk 0:03:01]}  Be7 {[%clk 0:02:56]} 9. Qe2 {[%clk 0:03:00]}  O-O {[%clk 0:02:56]} 10. Rd1 {[%clk 0:03:00]}  Nc6 {[%clk 0:02:56]} 11. Nc3 {[%clk 0:03:00]}  Nb4 {[%clk 0:02:56]} 12. Bg5 {[%clk 0:02:58]}  b6 {[%clk 0:02:18]} 13. Ne5 {[%clk 0:02:38]}  Bb7 {[%clk 0:01:49]} 14. Rac1 {[%clk 0:02:10]}  h6 {[%clk 0:01:42]} 15. Bh4 {[%clk 0:02:06]}  Rc8 {[%clk 0:01:33]} 16. Bb3 {[%clk 0:02:02]}  Nfd5 {[%clk 0:01:19]} 17. Bxe7 {[%clk 0:01:40]}  Qxe7 {[%clk 0:01:20]} 18. Ne4 {[%clk 0:01:39]}  Rfd8 {[%clk 0:01:06]} 19. h3 {[%clk 0:01:37]}  Nf6 {[%clk 0:00:41]} 20. Nc3 {[%clk 0:01:29]}  Nbd5 {[%clk 0:00:27]} 21. Nxd5 {[%clk 0:01:07]}  Nxd5 {[%clk 0:00:28]} 22. Qd2 {[%clk 0:00:29]}  a5 {[%clk 0:00:22]} 23. f3 {[%clk 0:00:23]}  Rxc1 {[%clk 0:00:20]} 24. Rxc1 {[%clk 0:00:23]}  Nb4 {[%clk 0:00:20]} 25. Rd1 {[%clk 0:00:20]}  Qd6 {[%clk 0:00:19]} 26. Qc3 {[%clk 0:00:18]}  Bd5 {[%clk 0:00:17]} 27. Nc4 {[%clk 0:00:16]}  Qg3 {[%clk 0:00:15]} 28. Re1 {[%clk 0:00:14]}  Bxc4 {[%clk 0:00:14]} 29. Bxc4 {[%clk 0:00:14]}  Rxd4 {[%clk 0:00:13]} 30. Qxd4 {[%clk 0:00:08]}  Qxe1+ {[%clk 0:00:12]} 31. Kh2 {[%clk 0:00:08]}  Nd5 {[%clk 0:00:06]} 32. Bxd5 {[%clk 0:00:07]}  exd5 {[%clk 0:00:06]} 33. Qxd5 {[%clk 0:00:08]}  Qb4 {[%clk 0:00:07]} 34. b3 {[%clk 0:00:07]}  g6 {[%clk 0:00:07]} 35. Kg3 {[%clk 0:00:04]}  Kg7 {[%clk 0:00:07]} 36. f4 {[%clk 0:00:04]}  h5 {[%clk 0:00:07]} 37. Qe5+ {[%clk 0:00:04]}  Kg8 {[%clk 0:00:07]} 38. Qe8+ {[%clk 0:00:03]}  Kg7 {[%clk 0:00:07]} 39. Qe5+ {[%clk 0:00:04]}  Kh7 {[%clk 0:00:06]} 40. Qd5 {[%clk 0:00:03]}  h4+ {[%clk 0:00:05]} 41. Kf3 {[%clk 0:00:03]}  Qc3+ {[%clk 0:00:05]} 42. Kf2 {[%clk 0:00:03]}  Qg3+ {[%clk 0:00:04]} 43. Kg1 {[%clk 0:00:02]}  Qxf4 {[%clk 0:00:04]} 44. Qc6 {[%clk 0:00:02]}  Qe3+ {[%clk 0:00:04]} 45. Kh2 {[%clk 0:00:01]}  Qxb3 {[%clk 0:00:05]} 46. Qc7 {[%clk 0:00:01]}  Kg7 {[%clk 0:00:05]} 47. Qe5+ {[%clk 0:00:00]}  f6 {[%clk 0:00:05]} 0-1


[Site "https://www.chess.com"]

[Event "Titled Tuesday Blitz May 16 Late 2023"]
[White "koncheto"]
[Black "Prydun, Andriy"]
[BlackFideId "14145898"]
[WhiteElo "2566"]
[BlackElo "2164"]
[Result "1/2-1/2"]
[Round "05"]
[TimeControl "180+2"]
[Date "2023.05.16"]
[WhiteClock "0:00:12"]
[BlackClock "0:00:08"]

1. d4 {[%clk 0:03:00]}  Nf6 {[%clk 0:02:59]} 2. Bg5 {[%clk 0:02:59]}  Ne4 {[%clk 0:02:59]} 3. h4 {[%clk 0:03:00]}  Nd6 {[%clk 0:02:57]} 4. Nd2 {[%clk 0:02:57]}  b5 {[%clk 0:02:30]} 5. e4 {[%clk 0:02:48]}  a6 {[%clk 0:02:30]} 6. Bd3 {[%clk 0:02:33]}  Nb7 {[%clk 0:02:28]} 7. Ne2 {[%clk 0:02:28]}  c5 {[%clk 0:02:27]} 8. c3 {[%clk 0:02:27]}  Nc6 {[%clk 0:02:26]} 9. f4 {[%clk 0:02:25]}  h6 {[%clk 0:02:22]} 10. d5 {[%clk 0:02:18]}  Nb8 {[%clk 0:02:18]} 11. h5 {[%clk 0:02:15]}  hxg5 {[%clk 0:02:16]} 12. fxg5 {[%clk 0:02:16]}  e6 {[%clk 0:01:54]} 13. Nf3 {[%clk 0:01:40]}  c4 {[%clk 0:01:34]} 14. Bc2 {[%clk 0:01:39]}  Bc5 {[%clk 0:01:25]} 15. e5 {[%clk 0:01:22]}  d6 {[%clk 0:01:16]} 16. g6 {[%clk 0:01:18]}  f6 {[%clk 0:01:16]} 17. h6 {[%clk 0:01:10]}  dxe5 {[%clk 0:01:11]} 18. Be4 {[%clk 0:00:36]}  Nd6 {[%clk 0:01:08]} 19. dxe6 {[%clk 0:00:17]}  Nxe4 {[%clk 0:01:06]} 20. Qxd8+ {[%clk 0:00:16]}  Kxd8 {[%clk 0:01:07]} 21. O-O-O+ {[%clk 0:00:16]}  Ke7 {[%clk 0:01:06]} 22. hxg7 {[%clk 0:00:13]}  Rg8 {[%clk 0:01:06]} 23. Rh8 {[%clk 0:00:07]}  Bxe6 {[%clk 0:01:05]} 24. Nh4 {[%clk 0:00:04]}  Nc6 {[%clk 0:01:02]} 25. Rh7 {[%clk 0:00:03]}  Nf2 {[%clk 0:00:53]} 26. Rf1 {[%clk 0:00:01]}  Be3+ {[%clk 0:00:51]} 27. Kb1 {[%clk 0:00:01]}  b4 {[%clk 0:00:48]} 28. Ng3 {[%clk 0:00:02]}  Kd7 {[%clk 0:00:41]} 29. Ngf5 {[%clk 0:00:02]}  Kc7 {[%clk 0:00:41]} 30. Nxe3 {[%clk 0:00:01]}  Ne4 {[%clk 0:00:40]} 31. Rc1 {[%clk 0:00:01]}  bxc3 {[%clk 0:00:40]} 32. bxc3 {[%clk 0:00:02]}  Rab8+ {[%clk 0:00:39]} 33. Kc2 {[%clk 0:00:03]}  Ng5 {[%clk 0:00:27]} 34. Rh6 {[%clk 0:00:02]}  Rxg7 {[%clk 0:00:27]} 35. Nhf5 {[%clk 0:00:03]}  Rd7 {[%clk 0:00:24]} 36. g7 {[%clk 0:00:03]}  Rg8 {[%clk 0:00:15]} 37. Rxf6 {[%clk 0:00:04]}  Nd8 {[%clk 0:00:07]} 38. g4 {[%clk 0:00:03]}  Ndf7 {[%clk 0:00:05]} 39. Rg6 {[%clk 0:00:03]}  Ne4 {[%clk 0:00:04]} 40. Nh6 {[%clk 0:00:03]}  Rd2+ {[%clk 0:00:04]} 41. Kb1 {[%clk 0:00:03]}  Nxh6 {[%clk 0:00:04]} 42. Rxe6 {[%clk 0:00:03]}  Nxg4 {[%clk 0:00:04]} 43. Nd5+ {[%clk 0:00:03]}  Kb7 {[%clk 0:00:04]} 44. Nb4 {[%clk 0:00:03]}  Rxg7 {[%clk 0:00:04]} 45. Rf1 {[%clk 0:00:04]}  Ne3 {[%clk 0:00:03]} 46. Rc1 {[%clk 0:00:03]}  Nf2 {[%clk 0:00:03]} 47. Rxe5 {[%clk 0:00:04]}  Ng2 {[%clk 0:00:02]} 48. Rc5 {[%clk 0:00:04]}  Ka7 {[%clk 0:00:02]} 49. Rxc4 {[%clk 0:00:04]}  Rb7 {[%clk 0:00:02]} 50. Rc6 {[%clk 0:00:04]}  a5 {[%clk 0:00:03]} 51. Ra6+ {[%clk 0:00:05]}  Kb8 {[%clk 0:00:03]} 52. Rxa5 {[%clk 0:00:05]}  Nd3 {[%clk 0:00:03]} 53. Rc2 {[%clk 0:00:05]}  Rxc2 {[%clk 0:00:03]} 54. Kxc2 {[%clk 0:00:06]}  Nxb4+ {[%clk 0:00:03]} 55. cxb4 {[%clk 0:00:06]}  Ne3+ {[%clk 0:00:04]} 56. Kb3 {[%clk 0:00:07]}  Ng4 {[%clk 0:00:03]} 57. Rf5 {[%clk 0:00:06]}  Ne3 {[%clk 0:00:03]} 58. Rc5 {[%clk 0:00:07]}  Ng4 {[%clk 0:00:03]} 59. a4 {[%clk 0:00:07]}  Nf6 {[%clk 0:00:03]} 60. a5 {[%clk 0:00:07]}  Nd7 {[%clk 0:00:03]} 61. Rh5 {[%clk 0:00:07]}  Ka7 {[%clk 0:00:04]} 62. Ka4 {[%clk 0:00:08]}  Rc7 {[%clk 0:00:03]} 63. b5 {[%clk 0:00:08]}  Rc4+ {[%clk 0:00:04]} 64. Kb3 {[%clk 0:00:08]}  Rc7 {[%clk 0:00:04]} 65. b6+ {[%clk 0:00:08]}  Nxb6 {[%clk 0:00:04]} 66. axb6+ {[%clk 0:00:08]}  Kxb6 {[%clk 0:00:05]} 67. Rh6+ {[%clk 0:00:08]}  Rc6 {[%clk 0:00:05]} 68. Rh8 {[%clk 0:00:09]}  Kc7 {[%clk 0:00:04]} 69. Kb4 {[%clk 0:00:09]}  Kb6 {[%clk 0:00:05]} 70. Rb8+ {[%clk 0:00:09]}  Kc7 {[%clk 0:00:06]} 71. Re8 {[%clk 0:00:10]}  Kb6 {[%clk 0:00:06]} 72. Re7 {[%clk 0:00:10]}  Rg6 {[%clk 0:00:05]} 73. Rf7 {[%clk 0:00:10]}  Rc6 {[%clk 0:00:05]} 74. Rf5 {[%clk 0:00:10]}  Rd6 {[%clk 0:00:05]} 75. Rg5 {[%clk 0:00:11]}  Kc6 {[%clk 0:00:05]} 76. Ra5 {[%clk 0:00:11]}  Kb6 {[%clk 0:00:06]} 77. Rb5+ {[%clk 0:00:11]}  Kc6 {[%clk 0:00:06]} 78. Ra5 {[%clk 0:00:11]}  Kb6 {[%clk 0:00:06]} 79. Ra8 {[%clk 0:00:11]}  Kb7 {[%clk 0:00:06]} 80. Rf8 {[%clk 0:00:11]}  Kb6 {[%clk 0:00:06]} 81. Rf7 {[%clk 0:00:11]}  Rc6 {[%clk 0:00:06]} 82. Rf5 {[%clk 0:00:11]}  Rd6 {[%clk 0:00:06]} 83. Ka4 {[%clk 0:00:11]}  Kc6 {[%clk 0:00:06]} 84. Ka5 {[%clk 0:00:12]}  Rd5+ {[%clk 0:00:07]} 85. Rxd5 {[%clk 0:00:12]}  Kxd5 {[%clk 0:00:08]} 1/2-1/2


[Site "https://www.chess.com"]

[Event "Titled Tuesday Blitz May 16 Late 2023"]
[White "Yeritsyan, Hayk"]
[Black "Mortazavi, Ali"]
[WhiteFideId "13307320"]
[BlackFideId "401323"]
[WhiteElo "2433"]
[BlackElo "2339"]
[Result "1-0"]
[Round "05"]
[TimeControl "180+2"]
[Date "2023.05.16"]
[WhiteClock "0:00:15"]
[BlackClock "0:00:25"]

1. d4 {[%clk 0:02:01]}  Nf6 {[%clk 0:02:38]} 2. Nf3 {[%clk 0:02:01]}  g6 {[%clk 0:02:39]} 3. Bf4 {[%clk 0:02:00]}  Bg7 {[%clk 0:02:39]} 4. h3 {[%clk 0:01:59]}  O-O {[%clk 0:02:40]} 5. e3 {[%clk 0:02:00]}  d6 {[%clk 0:02:41]} 6. c3 {[%clk 0:02:00]}  c5 {[%clk 0:02:42]} 7. Be2 {[%clk 0:02:01]}  Be6 {[%clk 0:02:42]} 8. Nbd2 {[%clk 0:01:58]}  Qb6 {[%clk 0:02:42]} 9. Qc1 {[%clk 0:01:59]}  Nc6 {[%clk 0:02:42]} 10. Ng5 {[%clk 0:01:59]}  Bd7 {[%clk 0:02:40]} 11. O-O {[%clk 0:01:57]}  cxd4 {[%clk 0:02:27]} 12. exd4 {[%clk 0:01:56]}  Rac8 {[%clk 0:02:24]} 13. Ngf3 {[%clk 0:01:40]}  Nd5 {[%clk 0:02:17]} 14. Bh2 {[%clk 0:01:27]}  Qd8 {[%clk 0:01:52]} 15. Qd1 {[%clk 0:01:25]}  Bh6 {[%clk 0:01:51]} 16. Re1 {[%clk 0:01:22]}  Nf4 {[%clk 0:01:45]} 17. Bf1 {[%clk 0:01:15]}  Re8 {[%clk 0:01:38]} 18. Qb3 {[%clk 0:01:07]}  Na5 {[%clk 0:01:29]} 19. Qd1 {[%clk 0:00:59]}  Be6 {[%clk 0:01:20]} 20. Qa4 {[%clk 0:00:51]}  a6 {[%clk 0:01:06]} 21. a3 {[%clk 0:00:30]}  b5 {[%clk 0:01:05]} 22. Qd1 {[%clk 0:00:30]}  Bd5 {[%clk 0:01:04]} 23. Bxf4 {[%clk 0:00:24]}  Bxf4 {[%clk 0:01:04]} 24. Bd3 {[%clk 0:00:25]}  f5 {[%clk 0:00:56]} 25. Qe2 {[%clk 0:00:20]}  Qc7 {[%clk 0:00:48]} 26. g3 {[%clk 0:00:19]}  Bh6 {[%clk 0:00:48]} 27. h4 {[%clk 0:00:17]}  Nc4 {[%clk 0:00:40]} 28. Nxc4 {[%clk 0:00:17]}  bxc4 {[%clk 0:00:40]} 29. Bc2 {[%clk 0:00:17]}  Bg7 {[%clk 0:00:30]} 30. Rad1 {[%clk 0:00:16]}  Bf6 {[%clk 0:00:30]} 31. Kh2 {[%clk 0:00:16]}  Kg7 {[%clk 0:00:30]} 32. Ng5 {[%clk 0:00:15]}  Qb7 {[%clk 0:00:26]} 33. Ne6+ {[%clk 0:00:15]}  Kg8 {[%clk 0:00:26]} 34. Nf4 {[%clk 0:00:14]}  Bf7 {[%clk 0:00:24]} 35. d5 {[%clk 0:00:11]}  Be5 {[%clk 0:00:24]} 36. Ne6 {[%clk 0:00:10]}  Bxe6 {[%clk 0:00:24]} 37. dxe6 {[%clk 0:00:10]}  Qxb2 {[%clk 0:00:23]} 38. Ba4 {[%clk 0:00:07]}  Rf8 {[%clk 0:00:20]} 39. Qxb2 {[%clk 0:00:06]}  f4 {[%clk 0:00:19]} 40. g4 {[%clk 0:00:06]}  f3+ {[%clk 0:00:19]} 41. Kh3 {[%clk 0:00:06]}  Rf4 {[%clk 0:00:20]} 42. Qc2 {[%clk 0:00:05]}  d5 {[%clk 0:00:17]} 43. Rxe5 {[%clk 0:00:05]}  Rcf8 {[%clk 0:00:16]} 44. Rexd5 {[%clk 0:00:05]}  h5 {[%clk 0:00:17]} 45. Rd8 {[%clk 0:00:06]}  Rxg4 {[%clk 0:00:16]} 46. Rxf8+ {[%clk 0:00:05]}  Kxf8 {[%clk 0:00:16]} 47. Qd2 {[%clk 0:00:04]}  Kg7 {[%clk 0:00:17]} 48. Re1 {[%clk 0:00:04]}  g5 {[%clk 0:00:16]} 49. Qd4+ {[%clk 0:00:04]}  Kg6 {[%clk 0:00:16]} 50. Qxg4 {[%clk 0:00:04]}  hxg4+ {[%clk 0:00:17]} 51. Kxg4 {[%clk 0:00:05]}  gxh4 {[%clk 0:00:17]} 52. Kxh4 {[%clk 0:00:06]}  Kf5 {[%clk 0:00:17]} 53. Kg3 {[%clk 0:00:07]}  Kf6 {[%clk 0:00:17]} 54. Kxf3 {[%clk 0:00:08]}  a5 {[%clk 0:00:18]} 55. Re4 {[%clk 0:00:07]}  Kf5 {[%clk 0:00:18]} 56. Rxc4 {[%clk 0:00:07]}  Ke5 {[%clk 0:00:19]} 57. Rc5+ {[%clk 0:00:08]}  Kd6 {[%clk 0:00:20]} 58. Rxa5 {[%clk 0:00:09]}  Kc7 {[%clk 0:00:20]} 59. Ke4 {[%clk 0:00:09]}  Kd8 {[%clk 0:00:21]} 60. Ra8+ {[%clk 0:00:08]}  Kc7 {[%clk 0:00:21]} 61. Re8 {[%clk 0:00:09]}  Kd6 {[%clk 0:00:22]} 62. Kf5 {[%clk 0:00:10]}  Kc5 {[%clk 0:00:21]} 63. Kg6 {[%clk 0:00:10]}  Kb6 {[%clk 0:00:21]} 64. Kf7 {[%clk 0:00:11]}  Ka5 {[%clk 0:00:22]} 65. Kxe7 {[%clk 0:00:12]}  Kb6 {[%clk 0:00:23]} 66. Kf7 {[%clk 0:00:12]}  Kc7 {[%clk 0:00:24]} 67. e7 {[%clk 0:00:13]}  Kd6 {[%clk 0:00:24]} 68. Rd8+ {[%clk 0:00:13]}  Kc5 {[%clk 0:00:23]} 69. e8=Q {[%clk 0:00:13]}  Kc4 {[%clk 0:00:24]} 70. Qe4+ {[%clk 0:00:13]}  Kc5 {[%clk 0:00:25]} 71. Rd5+ {[%clk 0:00:13]}  Kb6 {[%clk 0:00:25]} 72. Qe6+ {[%clk 0:00:14]}  Kc7 {[%clk 0:00:25]} 73. Rd7+ {[%clk 0:00:14]}  Kc8 {[%clk 0:00:25]} 74. Qe8# {[%clk 0:00:15]} 1-0


[Site "https://www.chess.com"]